[Event "Titled Tuesday Blitz July 4 Early 2023"]
[White "Kostiukov, Alexandr"]
[Black "Reprintsev, Alexander"]
[WhiteFideId "14108100"]
[BlackFideId "14100541"]
[WhiteElo "2295"]
[BlackElo "2480"]
[Result "0-1"]
[Round "4"]
[TimeControl "180+2"]
[Date "2023.07.04"]
[WhiteClock "0:00:00"]
[BlackClock "0:00:14"]
[Board "178"]

1. g3 {[%clk 0:02:59]}  d5 {[%clk 0:02:59]} 2. Bg2 {[%clk 0:02:58]}  Nc6 {[%clk 0:02:59]} 3. d4 {[%clk 0:02:58]}  Bf5 {[%clk 0:02:58]} 4. Nf3 {[%clk 0:02:58]}  Nb4 {[%clk 0:02:58]} 5. Na3 {[%clk 0:02:57]}  e6 {[%clk 0:02:57]} 6. O-O {[%clk 0:02:57]}  h6 {[%clk 0:02:57]} 7. c3 {[%clk 0:02:49]}  Nc6 {[%clk 0:02:57]} 8. Nb1 {[%clk 0:02:45]}  Nf6 {[%clk 0:02:56]} 9. Bf4 {[%clk 0:02:43]}  Be7 {[%clk 0:02:54]} 10. Ne5 {[%clk 0:02:43]}  Nxe5 {[%clk 0:02:50]} 11. Bxe5 {[%clk 0:02:42]}  O-O {[%clk 0:02:50]} 12. Nd2 {[%clk 0:02:42]}  Nd7 {[%clk 0:02:50]} 13. Bf4 {[%clk 0:02:39]}  c5 {[%clk 0:02:49]} 14. e4 {[%clk 0:02:32]}  dxe4 {[%clk 0:02:48]} 15. Nxe4 {[%clk 0:02:33]}  cxd4 {[%clk 0:02:48]} 16. Qxd4 {[%clk 0:02:30]}  Nb6 {[%clk 0:02:25]} 17. Nd6 {[%clk 0:02:20]}  Bf6 {[%clk 0:02:00]} 18. Be5 {[%clk 0:01:46]}  Bxe5 {[%clk 0:01:56]} 19. Qxe5 {[%clk 0:01:47]}  Nd7 {[%clk 0:01:19]} 20. Qb5 {[%clk 0:01:30]}  a6 {[%clk 0:01:11]} 21. Qxb7 {[%clk 0:01:23]}  Rb8 {[%clk 0:01:11]} 22. Qxa6 {[%clk 0:01:18]}  Rxb2 {[%clk 0:01:11]} 23. Nxf5 {[%clk 0:01:15]}  exf5 {[%clk 0:01:10]} 24. Rad1 {[%clk 0:01:15]}  Qc7 {[%clk 0:01:05]} 25. Qa3 {[%clk 0:01:08]}  Rfb8 {[%clk 0:01:00]} 26. Qe7 {[%clk 0:01:06]}  Rd8 {[%clk 0:00:55]} 27. Bd5 {[%clk 0:01:04]}  Kh8 {[%clk 0:00:44]} 28. Bxf7 {[%clk 0:01:00]}  Rb7 {[%clk 0:00:41]} 29. Rfe1 {[%clk 0:00:46]}  Rdb8 {[%clk 0:00:33]} 30. Bg6 {[%clk 0:00:28]}  Nf6 {[%clk 0:00:28]} 31. Qxc7 {[%clk 0:00:20]}  Rxc7 {[%clk 0:00:28]} 32. Rd3 {[%clk 0:00:13]}  f4 {[%clk 0:00:28]} 33. Red1 {[%clk 0:00:12]}  Rcc8 {[%clk 0:00:24]} 34. Kg2 {[%clk 0:00:11]}  fxg3 {[%clk 0:00:24]} 35. hxg3 {[%clk 0:00:12]}  Ng8 {[%clk 0:00:18]} 36. a4 {[%clk 0:00:07]}  Ne7 {[%clk 0:00:18]} 37. Be4 {[%clk 0:00:06]}  Rc5 {[%clk 0:00:16]} 38. Rd7 {[%clk 0:00:05]}  Ng8 {[%clk 0:00:15]} 39. R1d3 {[%clk 0:00:05]}  Ra5 {[%clk 0:00:15]} 40. R7d4 {[%clk 0:00:04]}  g5 {[%clk 0:00:14]} 41. Rd7 {[%clk 0:00:00]}  Nf6 {[%clk 0:00:14]} 0-1


[Site "https://www.chess.com"]

[Event "Titled Tuesday Blitz July 4 Early 2023"]
[White "Miszler, Levente"]
[Black "Mindhunter08"]
[WhiteFideId "763276"]
[WhiteElo "2478"]
[BlackElo "2284"]
[Result "0-1"]
[Round "4"]
[TimeControl "180+2"]
[Date "2023.07.04"]
[WhiteClock "0:00:00"]
[BlackClock "0:00:09"]
[Board "179"]

1. e4 {[%clk 0:03:00]}  e5 {[%clk 0:03:00]} 2. Nf3 {[%clk 0:02:59]}  Nc6 {[%clk 0:03:00]} 3. Bc4 {[%clk 0:02:56]}  Nf6 {[%clk 0:03:00]} 4. d3 {[%clk 0:02:56]}  Bc5 {[%clk 0:03:00]} 5. c3 {[%clk 0:02:54]}  O-O {[%clk 0:03:01]} 6. O-O {[%clk 0:02:54]}  d5 {[%clk 0:03:01]} 7. exd5 {[%clk 0:02:54]}  Nxd5 {[%clk 0:03:02]} 8. Re1 {[%clk 0:02:50]}  Bg4 {[%clk 0:03:02]} 9. h3 {[%clk 0:02:49]}  Bh5 {[%clk 0:03:02]} 10. Nbd2 {[%clk 0:02:43]}  Nb6 {[%clk 0:03:02]} 11. b4 {[%clk 0:02:37]}  Bd6 {[%clk 0:02:53]} 12. Bb3 {[%clk 0:02:33]}  a6 {[%clk 0:02:38]} 13. a4 {[%clk 0:02:32]}  Re8 {[%clk 0:02:37]} 14. a5 {[%clk 0:02:26]}  Nd7 {[%clk 0:02:36]} 15. Nc4 {[%clk 0:02:17]}  Qf6 {[%clk 0:02:33]} 16. Nxd6 {[%clk 0:02:16]}  Qxd6 {[%clk 0:02:31]} 17. Be3 {[%clk 0:02:08]}  Kh8 {[%clk 0:02:23]} 18. g4 {[%clk 0:02:05]}  Bg6 {[%clk 0:02:22]} 19. d4 {[%clk 0:02:01]}  exd4 {[%clk 0:02:09]} 20. Nxd4 {[%clk 0:02:02]}  Rad8 {[%clk 0:02:04]} 21. Nxc6 {[%clk 0:02:00]}  Qxc6 {[%clk 0:02:02]} 22. Bd4 {[%clk 0:01:56]}  Ne5 {[%clk 0:01:53]} 23. Bxe5 {[%clk 0:01:43]}  Rxd1 {[%clk 0:01:49]} 24. Raxd1 {[%clk 0:01:44]}  h5 {[%clk 0:01:13]} 25. Bd5 {[%clk 0:01:38]}  Qa4 {[%clk 0:01:13]} 26. gxh5 {[%clk 0:01:13]}  Bxh5 {[%clk 0:01:02]} 27. Rd4 {[%clk 0:01:06]}  Kg8 {[%clk 0:00:21]} 28. Rh4 {[%clk 0:01:03]}  Bg6 {[%clk 0:00:18]} 29. Rg4 {[%clk 0:01:02]}  Qc2 {[%clk 0:00:13]} 30. Re3 {[%clk 0:00:20]}  c6 {[%clk 0:00:11]} 31. Bc4 {[%clk 0:00:15]}  Qb1+ {[%clk 0:00:09]} 32. Kh2 {[%clk 0:00:15]}  Qf5 {[%clk 0:00:09]} 33. Rf4 {[%clk 0:00:13]}  Qg5 {[%clk 0:00:07]} 34. Bd6 {[%clk 0:00:06]}  Rxe3 {[%clk 0:00:05]} 35. fxe3 {[%clk 0:00:07]}  Qh5 {[%clk 0:00:05]} 36. Bc5 {[%clk 0:00:05]}  Qd1 {[%clk 0:00:05]} 37. Bd4 {[%clk 0:00:04]}  Qd2+ {[%clk 0:00:05]} 38. Kg3 {[%clk 0:00:04]}  Qc2 {[%clk 0:00:05]} 39. Rg4 {[%clk 0:00:04]}  Qd1 {[%clk 0:00:04]} 40. Rxg6 {[%clk 0:00:04]}  Qg1+ {[%clk 0:00:03]} 41. Kf3 {[%clk 0:00:04]}  Qxg6 {[%clk 0:00:04]} 42. Kf2 {[%clk 0:00:03]}  Qf5+ {[%clk 0:00:04]} 43. Ke2 {[%clk 0:00:03]}  Qxh3 {[%clk 0:00:04]} 44. Bd3 {[%clk 0:00:03]}  Qg2+ {[%clk 0:00:05]} 45. Ke1 {[%clk 0:00:03]}  Qg5 {[%clk 0:00:05]} 46. Be2 {[%clk 0:00:03]}  Qh4+ {[%clk 0:00:06]} 47. Kf1 {[%clk 0:00:03]}  g5 {[%clk 0:00:06]} 48. Bf3 {[%clk 0:00:03]}  g4 {[%clk 0:00:06]} 49. Bg2 {[%clk 0:00:04]}  g3 {[%clk 0:00:06]} 50. Bf3 {[%clk 0:00:04]}  Qh2 {[%clk 0:00:06]} 51. Bg2 {[%clk 0:00:05]}  Qh5 {[%clk 0:00:06]} 52. Ke1 {[%clk 0:00:04]}  Qf5 {[%clk 0:00:05]} 53. e4 {[%clk 0:00:03]}  Qf4 {[%clk 0:00:05]} 54. Ke2 {[%clk 0:00:03]}  Qc1 {[%clk 0:00:05]} 55. Kf3 {[%clk 0:00:04]}  Qg5 {[%clk 0:00:05]} 56. Bh3 {[%clk 0:00:03]}  Kh7 {[%clk 0:00:04]} 57. Bf5+ {[%clk 0:00:03]}  Kg8 {[%clk 0:00:05]} 58. Bh3 {[%clk 0:00:04]}  Qh4 {[%clk 0:00:06]} 59. Bg2 {[%clk 0:00:04]}  Qh2 {[%clk 0:00:06]} 60. Be5 {[%clk 0:00:04]}  Qg1 {[%clk 0:00:05]} 61. Bxg3 {[%clk 0:00:03]}  Qd1+ {[%clk 0:00:06]} 62. Kf4 {[%clk 0:00:03]}  Qd3 {[%clk 0:00:06]} 63. e5 {[%clk 0:00:03]}  Qxc3 {[%clk 0:00:06]} 64. Be4 {[%clk 0:00:04]}  Qxb4 {[%clk 0:00:07]} 65. Bh4 {[%clk 0:00:03]}  Qxa5 {[%clk 0:00:07]} 66. Bf6 {[%clk 0:00:02]}  Qd2+ {[%clk 0:00:07]} 67. Kf5 {[%clk 0:00:03]}  a5 {[%clk 0:00:08]} 68. e6 {[%clk 0:00:03]}  Qf2+ {[%clk 0:00:07]} 69. Ke5 {[%clk 0:00:03]}  Qc5+ {[%clk 0:00:07]} 70. Kf4 {[%clk 0:00:03]}  fxe6 {[%clk 0:00:08]} 71. Bg6 {[%clk 0:00:03]}  Qc4+ {[%clk 0:00:08]} 72. Be4 {[%clk 0:00:03]}  a4 {[%clk 0:00:08]} 73. Be7 {[%clk 0:00:03]}  b5 {[%clk 0:00:08]} 74. Bf6 {[%clk 0:00:03]}  a3 {[%clk 0:00:08]} 75. Ke3 {[%clk 0:00:04]}  a2 {[%clk 0:00:08]} 76. Bd3 {[%clk 0:00:05]}  Qd5 {[%clk 0:00:08]} 77. Bb2 {[%clk 0:00:04]}  Qc5+ {[%clk 0:00:07]} 78. Kd2 {[%clk 0:00:04]}  Qb4+ {[%clk 0:00:08]} 79. Kc2 {[%clk 0:00:04]}  c5 {[%clk 0:00:08]} 80. Be5 {[%clk 0:00:03]}  c4 {[%clk 0:00:08]} 81. Bg6 {[%clk 0:00:03]}  Qb1+ {[%clk 0:00:08]} 82. Kd2 {[%clk 0:00:03]}  Qxg6 {[%clk 0:00:09]} 83. Bc3 {[%clk 0:00:02]}  Qb1 {[%clk 0:00:09]} 84. Bd4 {[%clk 0:00:00]}  a1=Q {[%clk 0:00:09]} 0-1


[Site "https://www.chess.com"]

[Event "Titled Tuesday Blitz July 4 Early 2023"]
[White "Uzcategui Rodriguez, Alejandro"]
[Black "Tsyhanchuk, Stanislav"]
[WhiteFideId "3903400"]
[BlackFideId "13505130"]
[WhiteElo "2469"]
[BlackElo "2220"]
[Result "0-1"]
[Round "4"]
[TimeControl "180+2"]
[Date "2023.07.04"]
[WhiteClock "0:00:04"]
[BlackClock "0:00:28"]
[Board "185"]

1. d4 {[%clk 0:03:00]}  Nf6 {[%clk 0:02:59]} 2. Nf3 {[%clk 0:03:00]}  d5 {[%clk 0:02:59]} 3. Bg5 {[%clk 0:02:58]}  e6 {[%clk 0:02:52]} 4. Nbd2 {[%clk 0:02:57]}  Be7 {[%clk 0:02:50]} 5. e3 {[%clk 0:02:57]}  O-O {[%clk 0:02:50]} 6. Bd3 {[%clk 0:02:57]}  c5 {[%clk 0:02:49]} 7. c3 {[%clk 0:02:57]}  Nc6 {[%clk 0:02:48]} 8. O-O {[%clk 0:02:54]}  h6 {[%clk 0:02:39]} 9. Bh4 {[%clk 0:02:53]}  Nd7 {[%clk 0:02:34]} 10. Bxe7 {[%clk 0:02:50]}  Qxe7 {[%clk 0:02:35]} 11. e4 {[%clk 0:02:49]}  cxd4 {[%clk 0:02:29]} 12. Nxd4 {[%clk 0:02:41]}  Nxd4 {[%clk 0:02:27]} 13. cxd4 {[%clk 0:02:42]}  dxe4 {[%clk 0:02:27]} 14. Nxe4 {[%clk 0:02:43]}  b6 {[%clk 0:02:16]} 15. Qf3 {[%clk 0:02:42]}  Bb7 {[%clk 0:02:15]} 16. Rad1 {[%clk 0:02:40]}  Kh8 {[%clk 0:02:07]} 17. Qh5 {[%clk 0:02:35]}  Rfd8 {[%clk 0:01:58]} 18. Ng3 {[%clk 0:02:30]}  Nf6 {[%clk 0:01:56]} 19. Qh4 {[%clk 0:02:29]}  Nd5 {[%clk 0:01:48]} 20. Qe4 {[%clk 0:02:29]}  Nf6 {[%clk 0:01:47]} 21. Qe2 {[%clk 0:02:25]}  Rxd4 {[%clk 0:01:44]} 22. Nf5 {[%clk 0:02:24]}  Qd7 {[%clk 0:01:27]} 23. Nxd4 {[%clk 0:02:23]}  Qxd4 {[%clk 0:01:28]} 24. Bb1 {[%clk 0:02:23]}  Qc5 {[%clk 0:01:21]} 25. Rc1 {[%clk 0:02:21]}  Qg5 {[%clk 0:01:21]} 26. f3 {[%clk 0:02:12]}  Nh5 {[%clk 0:01:10]} 27. Qd3 {[%clk 0:01:50]}  g6 {[%clk 0:01:06]} 28. Rc7 {[%clk 0:00:34]}  Nf4 {[%clk 0:01:04]} 29. Qc2 {[%clk 0:00:26]}  Ba6 {[%clk 0:00:54]} 30. Rd1 {[%clk 0:00:23]}  Kg7 {[%clk 0:00:45]} 31. Rdd7 {[%clk 0:00:20]}  Rf8 {[%clk 0:00:44]} 32. Qc3+ {[%clk 0:00:13]}  e5 {[%clk 0:00:43]} 33. Qc2 {[%clk 0:00:11]}  Nh3+ {[%clk 0:00:29]} 34. Kh1 {[%clk 0:00:12]}  Qe3 {[%clk 0:00:28]} 35. gxh3 {[%clk 0:00:04]}  Qe1+ {[%clk 0:00:27]} 36. Kg2 {[%clk 0:00:04]}  Bf1+ {[%clk 0:00:28]} 37. Kg1 {[%clk 0:00:04]}  Bxh3# {[%clk 0:00:28]} 0-1


[Site "https://www.chess.com"]

[Event "Titled Tuesday Blitz July 4 Early 2023"]
[White "Fiedorek, Michal"]
[Black "Fernandez Hernandez, Gerardo"]
[WhiteFideId "1199528"]
[BlackFideId "2207400"]
[WhiteElo "2464"]
[BlackElo "2203"]
[Result "1/2-1/2"]
[Round "4"]
[TimeControl "180+2"]
[Date "2023.07.04"]
[WhiteClock "0:00:44"]
[BlackClock "0:00:18"]
[Board "188"]

1. e4 {[%clk 0:02:59]}  e6 {[%clk 0:03:00]} 2. d3 {[%clk 0:02:58]}  d5 {[%clk 0:03:00]} 3. Nd2 {[%clk 0:02:54]}  Nf6 {[%clk 0:03:01]} 4. g3 {[%clk 0:02:54]}  Nc6 {[%clk 0:02:58]} 5. Bg2 {[%clk 0:02:55]}  dxe4 {[%clk 0:02:58]} 6. dxe4 {[%clk 0:02:54]}  e5 {[%clk 0:02:58]} 7. Ngf3 {[%clk 0:02:54]}  Bc5 {[%clk 0:02:58]} 8. O-O {[%clk 0:02:54]}  a5 {[%clk 0:02:55]} 9. c3 {[%clk 0:02:54]}  b6 {[%clk 0:02:54]} 10. Re1 {[%clk 0:02:53]}  Ng4 {[%clk 0:02:49]} 11. Rf1 {[%clk 0:02:43]}  Ba6 {[%clk 0:02:48]} 12. c4 {[%clk 0:02:44]}  Bxc4 {[%clk 0:02:29]} 13. Nxc4 {[%clk 0:02:28]}  Qxd1 {[%clk 0:02:30]} 14. Rxd1 {[%clk 0:02:28]}  Nxf2 {[%clk 0:02:30]} 15. Be3 {[%clk 0:02:28]}  Bxe3 {[%clk 0:02:22]} 16. Nxe3 {[%clk 0:02:27]}  Nxd1 {[%clk 0:02:21]} 17. Rxd1 {[%clk 0:02:28]}  Rd8 {[%clk 0:02:18]} 18. Rc1 {[%clk 0:02:26]}  Nd4 {[%clk 0:02:08]} 19. Rxc7 {[%clk 0:02:24]}  Nxf3+ {[%clk 0:01:56]} 20. Bxf3 {[%clk 0:02:22]}  O-O {[%clk 0:01:57]} 21. Nd5 {[%clk 0:02:22]}  f5 {[%clk 0:01:43]} 22. exf5 {[%clk 0:02:16]}  Kh8 {[%clk 0:01:38]} 23. Be4 {[%clk 0:02:16]}  Rc8 {[%clk 0:01:34]} 24. Rxc8 {[%clk 0:02:14]}  Rxc8 {[%clk 0:01:34]} 25. Nxb6 {[%clk 0:02:15]}  Rb8 {[%clk 0:01:16]} 26. Nc4 {[%clk 0:02:13]}  a4 {[%clk 0:01:14]} 27. Bc2 {[%clk 0:02:06]}  Rb4 {[%clk 0:01:12]} 28. b3 {[%clk 0:02:06]}  axb3 {[%clk 0:01:11]} 29. axb3 {[%clk 0:02:06]}  e4 {[%clk 0:01:11]} 30. Kf2 {[%clk 0:02:06]}  Rb5 {[%clk 0:01:04]} 31. g4 {[%clk 0:02:07]}  h5 {[%clk 0:01:04]} 32. h3 {[%clk 0:02:07]}  hxg4 {[%clk 0:01:04]} 33. hxg4 {[%clk 0:02:08]}  Kh7 {[%clk 0:01:04]} 34. Ke3 {[%clk 0:02:08]}  Kh6 {[%clk 0:01:04]} 35. Kf4 {[%clk 0:02:01]}  Rb4 {[%clk 0:01:00]} 36. g5+ {[%clk 0:01:59]}  Kh5 {[%clk 0:00:59]} 37. Ne3 {[%clk 0:01:33]}  Rd4 {[%clk 0:00:41]} 38. Bxe4 {[%clk 0:01:28]}  Rb4 {[%clk 0:00:36]} 39. Ng2 {[%clk 0:00:48]}  Rxb3 {[%clk 0:00:33]} 40. Bf3+ {[%clk 0:00:49]}  Rxf3+ {[%clk 0:00:18]} 41. Kxf3 {[%clk 0:00:50]}  Kxg5 {[%clk 0:00:19]} 42. Ke4 {[%clk 0:00:44]}  g6 {[%clk 0:00:18]} 43. Ne3 {[%clk 0:00:43]}  gxf5+ {[%clk 0:00:18]} 44. Nxf5 {[%clk 0:00:44]} 1/2-1/2


[Site "https://www.chess.com"]

[Event "Titled Tuesday Blitz July 4 Early 2023"]
[White "Schachpanda_Youtube"]
[Black "Sanhueza, Cristian"]
[BlackFideId "116815"]
[WhiteElo "2193"]
[BlackElo "2463"]
[Result "1-0"]
[Round "4"]
[TimeControl "180+2"]
[Date "2023.07.04"]
[WhiteClock "0:00:12"]
[BlackClock "0:00:00"]
[Board "189"]

1. e4 {[%clk 0:03:00]}  e5 {[%clk 0:02:59]} 2. Nc3 {[%clk 0:03:00]}  Nf6 {[%clk 0:02:59]} 3. d4 {[%clk 0:03:00]}  exd4 {[%clk 0:03:00]} 4. Qxd4 {[%clk 0:03:01]}  Nc6 {[%clk 0:03:00]} 5. Qd3 {[%clk 0:03:01]}  Bb4 {[%clk 0:02:59]} 6. Ne2 {[%clk 0:03:02]}  O-O {[%clk 0:02:58]} 7. Bg5 {[%clk 0:03:02]}  h6 {[%clk 0:02:56]} 8. Bh4 {[%clk 0:03:02]}  Re8 {[%clk 0:02:52]} 9. O-O-O {[%clk 0:03:01]}  Ne5 {[%clk 0:02:49]} 10. Qd4 {[%clk 0:03:01]}  Nc6 {[%clk 0:02:26]} 11. Qd3 {[%clk 0:02:58]}  d6 {[%clk 0:02:22]} 12. f4 {[%clk 0:02:57]}  Bg4 {[%clk 0:02:04]} 13. Nd5 {[%clk 0:02:40]}  g5 {[%clk 0:01:49]} 14. fxg5 {[%clk 0:02:10]}  Nxd5 {[%clk 0:01:49]} 15. exd5 {[%clk 0:02:08]}  Ne5 {[%clk 0:01:47]} 16. Qb3 {[%clk 0:01:37]}  Bc5 {[%clk 0:01:42]} 17. Kb1 {[%clk 0:01:14]}  hxg5 {[%clk 0:01:39]} 18. Bg3 {[%clk 0:01:14]}  a5 {[%clk 0:01:36]} 19. h3 {[%clk 0:01:01]}  a4 {[%clk 0:01:35]} 20. Qc3 {[%clk 0:00:58]}  Bh5 {[%clk 0:01:26]} 21. Bxe5 {[%clk 0:00:50]}  Rxe5 {[%clk 0:01:24]} 22. Ng3 {[%clk 0:00:50]}  Bg6 {[%clk 0:01:06]} 23. Bd3 {[%clk 0:00:49]}  Re3 {[%clk 0:00:35]} 24. Nf1 {[%clk 0:00:27]}  Rxd3 {[%clk 0:00:18]} 25. cxd3 {[%clk 0:00:25]}  a3 {[%clk 0:00:19]} 26. b3 {[%clk 0:00:24]}  Qe7 {[%clk 0:00:18]} 27. Nd2 {[%clk 0:00:22]}  Qe2 {[%clk 0:00:16]} 28. Ne4 {[%clk 0:00:19]}  Bxe4 {[%clk 0:00:05]} 29. dxe4 {[%clk 0:00:17]}  Re8 {[%clk 0:00:05]} 30. Rhe1 {[%clk 0:00:16]}  Qxg2 {[%clk 0:00:00]} 31. Rd2 {[%clk 0:00:12]} 1-0


[Site "https://www.chess.com"]

[Event "Titled Tuesday Blitz July 4 Early 2023"]
[White "Lisjak, Zlatko"]
[Black "Manukian, Artak"]
[WhiteFideId "14502186"]
[BlackFideId "13301373"]
[WhiteElo "2130"]
[BlackElo "2447"]
[Result "0-1"]
[Round "4"]
[TimeControl "180+2"]
[Date "2023.07.04"]
[WhiteClock "0:00:00"]
[BlackClock "0:00:51"]
[Board "192"]

1. d4 {[%clk 0:03:00]}  d5 {[%clk 0:02:59]} 2. Nc3 {[%clk 0:03:00]}  c6 {[%clk 0:02:58]} 3. Bf4 {[%clk 0:03:00]}  Bf5 {[%clk 0:02:56]} 4. e3 {[%clk 0:02:56]}  e6 {[%clk 0:02:55]} 5. f3 {[%clk 0:02:56]}  Bd6 {[%clk 0:02:52]} 6. Bd3 {[%clk 0:02:49]}  Bxd3 {[%clk 0:02:50]} 7. Qxd3 {[%clk 0:02:48]}  Bxf4 {[%clk 0:02:50]} 8. exf4 {[%clk 0:02:48]}  Ne7 {[%clk 0:02:45]} 9. O-O-O {[%clk 0:02:46]}  O-O {[%clk 0:02:35]} 10. g4 {[%clk 0:02:45]}  b5 {[%clk 0:02:34]} 11. h4 {[%clk 0:02:37]}  b4 {[%clk 0:02:33]} 12. Na4 {[%clk 0:02:32]}  Nd7 {[%clk 0:02:31]} 13. h5 {[%clk 0:02:29]}  Qa5 {[%clk 0:02:29]} 14. Qb3 {[%clk 0:02:05]}  Rfc8 {[%clk 0:02:15]} 15. Ne2 {[%clk 0:02:00]}  c5 {[%clk 0:02:12]} 16. dxc5 {[%clk 0:01:53]}  Nxc5 {[%clk 0:02:12]} 17. Nxc5 {[%clk 0:01:53]}  Rxc5 {[%clk 0:02:11]} 18. h6 {[%clk 0:01:47]}  Rac8 {[%clk 0:01:59]} 19. Nd4 {[%clk 0:01:46]}  Nc6 {[%clk 0:01:49]} 20. Nxc6 {[%clk 0:01:26]}  R8xc6 {[%clk 0:01:47]} 21. Rd2 {[%clk 0:01:13]}  Qc7 {[%clk 0:01:43]} 22. hxg7 {[%clk 0:01:01]}  Qxf4 {[%clk 0:01:37]} 23. Qd3 {[%clk 0:00:56]}  Rxc2+ {[%clk 0:01:31]} 24. Kb1 {[%clk 0:00:55]}  Qh6 {[%clk 0:01:12]} 25. Rhd1 {[%clk 0:00:12]}  Rxd2 {[%clk 0:01:05]} 26. Qxd2 {[%clk 0:00:08]}  Qxd2 {[%clk 0:01:00]} 27. Rxd2 {[%clk 0:00:09]}  Kxg7 {[%clk 0:01:01]} 28. Rd4 {[%clk 0:00:09]}  a5 {[%clk 0:01:00]} 29. f4 {[%clk 0:00:09]}  Rc4 {[%clk 0:01:00]} 30. Rxc4 {[%clk 0:00:07]}  dxc4 {[%clk 0:01:01]} 31. Kc2 {[%clk 0:00:00]}  h5 {[%clk 0:00:51]} 0-1


[Site "https://www.chess.com"]

[Event "Titled Tuesday Blitz July 4 Early 2023"]
[White "Singgih, Diajeng Theresa"]
[Black "Dobre, Claudiu-Cristian"]
[WhiteFideId "7104391"]
[BlackFideId "1211854"]
[WhiteElo "2119"]
[BlackElo "2447"]
[Result "0-1"]
[Round "4"]
[TimeControl "180+2"]
[Date "2023.07.04"]
[WhiteClock "0:00:03"]
[BlackClock "0:00:17"]
[Board "193"]

1. e4 {[%clk 0:02:57]}  Nc6 {[%clk 0:02:59]} 2. d4 {[%clk 0:02:56]}  d5 {[%clk 0:02:58]} 3. e5 {[%clk 0:02:55]}  Bf5 {[%clk 0:02:58]} 4. c3 {[%clk 0:02:50]}  e6 {[%clk 0:02:57]} 5. Bd3 {[%clk 0:02:49]}  Nge7 {[%clk 0:02:57]} 6. Nf3 {[%clk 0:02:49]}  f6 {[%clk 0:02:49]} 7. exf6 {[%clk 0:02:36]}  gxf6 {[%clk 0:02:48]} 8. Nh4 {[%clk 0:02:35]}  Bxd3 {[%clk 0:02:46]} 9. Qxd3 {[%clk 0:02:35]}  Qd7 {[%clk 0:02:35]} 10. O-O {[%clk 0:02:34]}  e5 {[%clk 0:02:29]} 11. dxe5 {[%clk 0:02:18]}  fxe5 {[%clk 0:02:28]} 12. b4 {[%clk 0:02:14]}  Qg4 {[%clk 0:02:06]} 13. Qg3 {[%clk 0:02:02]}  Qxg3 {[%clk 0:02:00]} 14. hxg3 {[%clk 0:02:02]}  Bg7 {[%clk 0:01:55]} 15. Bb2 {[%clk 0:01:40]}  e4 {[%clk 0:01:53]} 16. a3 {[%clk 0:01:23]}  O-O {[%clk 0:01:48]} 17. Nd2 {[%clk 0:01:20]}  Ne5 {[%clk 0:01:41]} 18. c4 {[%clk 0:00:58]}  Nxc4 {[%clk 0:01:29]} 19. Nxc4 {[%clk 0:00:55]}  dxc4 {[%clk 0:01:29]} 20. Bxg7 {[%clk 0:00:55]}  Kxg7 {[%clk 0:01:28]} 21. Rfe1 {[%clk 0:00:56]}  b5 {[%clk 0:01:10]} 22. Rxe4 {[%clk 0:00:55]}  Ng6 {[%clk 0:01:09]} 23. Nxg6 {[%clk 0:00:52]}  hxg6 {[%clk 0:01:09]} 24. a4 {[%clk 0:00:44]}  c6 {[%clk 0:00:57]} 25. axb5 {[%clk 0:00:26]}  cxb5 {[%clk 0:00:57]} 26. Ra6 {[%clk 0:00:26]}  Rf6 {[%clk 0:00:20]} 27. Re7+ {[%clk 0:00:26]}  Kf8 {[%clk 0:00:20]} 28. Rxf6+ {[%clk 0:00:12]}  Kxe7 {[%clk 0:00:19]} 29. Rxg6 {[%clk 0:00:12]}  a5 {[%clk 0:00:20]} 30. bxa5 {[%clk 0:00:09]}  b4 {[%clk 0:00:20]} 31. Rb6 {[%clk 0:00:07]}  b3 {[%clk 0:00:18]} 32. Rb4 {[%clk 0:00:06]}  Rc8 {[%clk 0:00:17]} 33. a6 {[%clk 0:00:06]}  c3 {[%clk 0:00:17]} 34. a7 {[%clk 0:00:03]}  c2 {[%clk 0:00:17]} 35. Rb8 {[%clk 0:00:02]}  c1=Q+ {[%clk 0:00:17]} 36. Kh2 {[%clk 0:00:03]}  Qh6+ {[%clk 0:00:17]} 37. Kg1 {[%clk 0:00:03]}  Rc1# {[%clk 0:00:17]} 0-1


[Site "https://www.chess.com"]

[Event "Titled Tuesday Blitz July 4 Early 2023"]
[White "Ocelak, Jakub"]
[Black "Jaivardhan Raj"]
[WhiteFideId "23707933"]
[BlackFideId "25744437"]
[WhiteElo "2438"]
[BlackElo "2093"]
[Result "1-0"]
[Round "4"]
[TimeControl "180+2"]
[Date "2023.07.04"]
[WhiteClock "0:00:41"]
[BlackClock "0:00:09"]
[Board "195"]

1. b3 {[%clk 0:03:00]}  b6 {[%clk 0:02:59]} 2. Bb2 {[%clk 0:02:59]}  Bb7 {[%clk 0:02:58]} 3. Nf3 {[%clk 0:02:59]}  Nf6 {[%clk 0:02:57]} 4. c4 {[%clk 0:02:54]}  g6 {[%clk 0:02:56]} 5. g3 {[%clk 0:02:49]}  Bg7 {[%clk 0:02:55]} 6. Bg2 {[%clk 0:02:50]}  d6 {[%clk 0:02:54]} 7. d4 {[%clk 0:02:49]}  Nbd7 {[%clk 0:02:52]} 8. O-O {[%clk 0:02:48]}  O-O {[%clk 0:02:51]} 9. Nc3 {[%clk 0:02:48]}  e6 {[%clk 0:02:51]} 10. Re1 {[%clk 0:02:47]}  Ne4 {[%clk 0:02:44]} 11. Qd3 {[%clk 0:02:40]}  Nxc3 {[%clk 0:02:42]} 12. Bxc3 {[%clk 0:02:41]}  Rb8 {[%clk 0:02:38]} 13. e4 {[%clk 0:02:39]}  f5 {[%clk 0:02:28]} 14. exf5 {[%clk 0:02:31]}  exf5 {[%clk 0:02:23]} 15. d5 {[%clk 0:02:28]}  Nc5 {[%clk 0:02:19]} 16. Qc2 {[%clk 0:02:25]}  Bxc3 {[%clk 0:02:18]} 17. Qxc3 {[%clk 0:02:26]}  Ne4 {[%clk 0:02:18]} 18. Qd3 {[%clk 0:02:22]}  Qf6 {[%clk 0:02:11]} 19. Nd4 {[%clk 0:02:20]}  Nc5 {[%clk 0:02:09]} 20. Qd2 {[%clk 0:02:15]}  Rbe8 {[%clk 0:01:56]} 21. Nb5 {[%clk 0:02:11]}  Qf7 {[%clk 0:01:42]} 22. Nxa7 {[%clk 0:02:06]}  Nd7 {[%clk 0:01:19]} 23. Nb5 {[%clk 0:01:53]}  Ne5 {[%clk 0:01:04]} 24. f4 {[%clk 0:01:49]}  Ng4 {[%clk 0:00:52]} 25. h3 {[%clk 0:01:49]}  Nf6 {[%clk 0:00:50]} 26. Qd4 {[%clk 0:01:46]}  Nh5 {[%clk 0:00:49]} 27. Kh2 {[%clk 0:01:44]}  h6 {[%clk 0:00:38]} 28. Re6 {[%clk 0:01:37]}  Bc8 {[%clk 0:00:25]} 29. Rxe8 {[%clk 0:01:37]}  Rxe8 {[%clk 0:00:24]} 30. Bf3 {[%clk 0:01:29]}  Nf6 {[%clk 0:00:17]} 31. Nxc7 {[%clk 0:01:16]}  Ng4+ {[%clk 0:00:12]} 32. hxg4 {[%clk 0:01:15]}  Qxc7 {[%clk 0:00:13]} 33. Qf6 {[%clk 0:01:09]}  fxg4 {[%clk 0:00:12]} 34. Qxg6+ {[%clk 0:01:08]}  Kf8 {[%clk 0:00:12]} 35. Qf6+ {[%clk 0:01:06]}  Kg8 {[%clk 0:00:12]} 36. Qg6+ {[%clk 0:01:06]}  Kf8 {[%clk 0:00:12]} 37. Bxg4 {[%clk 0:01:04]}  Qc5 {[%clk 0:00:11]} 38. Qxh6+ {[%clk 0:00:49]}  Kg8 {[%clk 0:00:11]} 39. Qg6+ {[%clk 0:00:49]}  Kf8 {[%clk 0:00:11]} 40. Rg1 {[%clk 0:00:44]}  Qf2+ {[%clk 0:00:10]} 41. Rg2 {[%clk 0:00:44]}  Qf1 {[%clk 0:00:10]} 42. Qf6+ {[%clk 0:00:41]}  Kg8 {[%clk 0:00:09]} 43. Bxc8 {[%clk 0:00:41]} 1-0


[Site "https://www.chess.com"]